Workbook

Sheet Steuern bei TZ
B1: Zinseszins-Rechner | G1: Kaufkraftentwicklung
H2: Entwicklung | I2: Entwicklung | J2: Entwicklung | K2: =IF(K5>0,"Kaufkraftgewinn","Kaufkraftverlust") -> Kaufkraftverlust | N2: Zinsen | O2: Zinsen | P2: Steuern
G3: Jahr | H3: nominell | I3: nach Steuern | J3: nach Steuern | K3: nach Steuern | O3: nach PB
J4: und Inflation | K4: und Inflation
G5: 1 | H5: =$D$12*(1+$D$13^G5) -> 102000 | I5: =H5-P5 -> 101720.05 | J5: =I5*(1+$D$14)^(-G5) -> 96876.2381 | K5: =J5-D$12 -> -3123.761905 | N5: =H5-D12 -> 2000 | O5: =IF(N5-$D$16<0,0,N5-$D$16) -> 1000 | P5: =O5*$D$15 -> 279.95
B6: Tel.: 02151-313148, info@proneutralis.de, www.proneutralis.de | G6: =G5+1 -> 2 | H6: =$D$12*((1+$D$13)^G6) -> 104040 | I6: =M6-P6 -> 103464.8704 | J6: =I6*(1+$D$14)^(-G6) -> 93845.68747 | K6: =J6-D$12 -> -6154.312526 | L6: 2 | M6: =I5*(1+$D$13) -> 103754.451 | N6: =M6-I5 -> 2034.401 | O6: =IF(N6-$D$16<0,0,N6-$D$16) -> 1034.401 | P6: =O6*$D$15 -> 289.5805599
C7: www.neutralis-fondsshop.de | G7: =G6+1 -> 3 | H7: =$D$12*((1+$D$13)^G7) -> 106120.8 | I7: =M7-P7 -> 105231.5979 | J7: 90903.01081 | K7: -9096.98919 | L7: 3 | M7: =I6*(1+$D$13) -> 105534.1678 | N7: =H7-H6 -> 2080.8 | O7: 1080.8 | P7: 302.56996
G8: 4 | H8: 108243.216 | I8: 107022.0095 | J8: 88047.27206 | K8: -11952.72794 | L8: 4 | M8: =I7*(1+$D$13) -> 107336.2298 | N8: 2122.416 | O8: 1122.416 | P8: 314.2203592
B9: Berechnungsdaten | G9: 5 | H9: 110408.0803 | I9: 108836.3459 | J9: 85276.12488 | K9: -14723.87512 | L9: 5 | M9: =I8*(1+$D$13) -> 109162.4497 | N9: 2164.86432 | O9: 1164.86432 | P9: 326.1037664
G10: 6 | H10: 112616.2419 | I10: 110674.848 | J10: 82587.27559 | K10: -17412.72441 | L10: 6 | M10: 111013.0728 | N10: 2208.161606 | O10: 1208.161606 | P10: 338.2248417
C11: Beispiel: | D11: Bankguthaben | G11: 7 | H11: 114868.5668 | I11: 112537.7566 | J11: 79978.48256 | K11: -20021.51744 | L11: 7 | M11: 112888.3449 | N11: 2252.324839 | O11: 1252.324839 | P11: 350.5883385
C12: Anlagebetrag: | D12: 100000 | G12: 8 | H12: 117165.9381 | I12: 114425.3126 | J12: 77447.5556 | K12: -22552.4444 | L12: 8 | M12: 114788.5117 | N12: 2297.371335 | O12: 1297.371335 | P12: 363.1991053
C13: Zins: | D13: 0.02 | G13: 9 | H13: 119509.2569 | I13: 116337.7568 | J13: 74992.35533 | K13: -25007.64467 | L13: 9 | M13: 116713.8189 | N13: 2343.318762 | O13: 1343.318762 | P13: 376.0620874
C14: Inflationsrate: | D14: 0.05 | G14: 10 | H14: 121899.442 | I14: 118275.3296 | J14: 72610.79241 | K14: -27389.20759 | L14: 10 | M14: 118664.5119 | N14: 2390.185137 | O14: 1390.185137 | P14: 389.1823292
C15: Abgeltungsteuer (inkl. SolZ + KiSt): | D15: 0.27995 | G15: 11 | H15: 124337.4308 | I15: 120238.2712 | J15: 70300.82694 | K15: -29699.17306 | L15: 11 | M15: 120640.8362 | N15: 2437.98884 | O15: 1437.98884 | P15: 402.5649758
C16: verbliebener Sparerpauschbetrag: | D16: 1000 | G16: 12 | H16: 126824.1795 | I16: 122226.8214 | J16: 68060.46765 | K16: -31939.53235 | L16: 12 | M16: 122643.0366 | N16: 2486.748617 | O16: 1486.748617 | P16: 416.2152753
C17: =IF(K5>0,"Kaufkraftgewinn nach 30 Jahren:","Kaufkraftverlust nach 30 Jahren:") -> Kaufkraftverlust nach 30 Jahren: | D17: =K34 -> -62362.51117 | G17: 13 | H17: 129360.663 | I17: 124241.2192 | J17: 65887.77118 | K17: -34112.22882 | L17: 13 | M17: 124671.3578 | N17: 2536.483589 | O17: 1536.483589 | P17: 430.1385808
G18: 14 | H18: 131947.8763 | I18: 126281.7033 | J18: 63780.84136 | K18: -36219.15864 | L18: 14 | M18: 126726.0436 | N18: 2587.213261 | O18: 1587.213261 | P18: 444.3403524
G19: 15 | H19: 134586.8338 | I19: 128348.5112 | J19: 61737.82838 | K19: -38262.17162 | L19: 15 | M19: 128807.3373 | N19: 2638.957526 | O19: 1638.957526 | P19: 458.8261594
G20: 16 | H20: 137278.5705 | I20: 130441.8797 | J20: 59756.92804 | K20: -40243.07196 | L20: 16 | M20: 130915.4814 | N20: 2691.736677 | O20: 1691.736677 | P20: 473.6016826
G21: 17 | H21: 140024.1419 | I21: 132562.0446 | J21: 57836.38095 | K21: -42163.61905 | L21: 17 | M21: 133050.7173 | N21: 2745.57141 | O21: 1745.57141 | P21: 488.6727163
G22: 18 | H22: 142824.6248 | I22: 134709.2403 | J22: 55974.47174 | K22: -44025.52826 | L22: 18 | M22: 135213.2855 | N22: 2800.482838 | O22: 1800.482838 | P22: 504.0451706
G23: 19 | H23: 145681.1173 | I23: 136883.7 | J23: 54169.52826 | K23: -45830.47174 | L23: 19 | M23: 137403.4251 | N23: 2856.492495 | O23: 1856.492495 | P23: 519.725074
G24: 20 | H24: 148594.7396 | I24: 139085.6555 | J24: 52419.92076 | K24: -47580.07924 | L24: 20 | M24: 139621.374 | N24: 2913.622345 | O24: 1913.622345 | P24: 535.7185755
G25: 21 | H25: 151566.6344 | I25: 141315.3366 | J25: 50724.06108 | K25: -49275.93892 | L25: 21 | M25: 141867.3686 | N25: 2971.894792 | O25: 1971.894792 | P25: 552.031947
G26: 22 | H26: 154597.9671 | I26: 143572.9718 | J26: 49080.40189 | K26: -50919.59811 | L26: 22 | M26: 144141.6433 | N26: 3031.332688 | O26: 2031.332688 | P26: 568.6715859
G27: 23 | H27: 157689.9264 | I27: 145858.7872 | J27: 47487.4358 | K27: -52512.5642 | L27: 23 | M27: 146444.4312 | N27: 3091.959342 | O27: 2091.959342 | P27: 585.6440177
G28: 24 | H28: 160843.7249 | I28: 148173.007 | J28: 45943.69465 | K28: -54056.30535 | L28: 24 | M28: 148775.9629 | N28: 3153.798528 | O28: 2153.798528 | P28: 602.955898
G29: 25 | H29: 164060.5994 | I29: 150515.8531 | J29: 44447.74862 | K29: -55552.25138 | L29: 25 | M29: 151136.4672 | N29: 3216.874499 | O29: 2216.874499 | P29: 620.614016
G30: 26 | H30: 167341.8114 | I30: 152887.5449 | J30: 42998.2055 | K30: -57001.7945 | L30: 26 | M30: 153526.1702 | N30: 3281.211989 | O30: 2281.211989 | P30: 638.6252963
G31: 27 | H31: 170688.6477 | I31: 155288.299 | J31: 41593.70985 | K31: -58406.29015 | L31: 27 | M31: 155945.2958 | N31: 3346.836229 | O31: 2346.836229 | P31: 656.9968022
G32: =G31+1 -> 28 | H32: 174102.4206 | I32: 157718.3293 | J32: 40232.94225 | K32: -59767.05775 | L32: 28 | M32: 158394.065 | N32: 3413.772953 | O32: 2413.772953 | P32: 675.7357383
G33: 29 | H33: 177584.469 | I33: 160177.8464 | J33: 38914.6185 | K33: -61085.3815 | L33: 29 | M33: 160872.6958 | N33: 3482.048412 | O33: 2482.048412 | P33: 694.849453
G34: 30 | H34: 181136.1584 | I34: 162667.0579 | J34: 37637.48883 | K34: -62362.51117 | L34: 30 | M34: 163381.4033 | N34: 3551.689381 | O34: 2551.689381 | P34: 714.3454421
